fUSD/lending_fUSD_20260526
["ID","MTS","AMOUNT","RATE_DAILY","PERIOD"]
[423012746,1779745898000,-300.0,0.00035777,2]
[423012762,1779745898000,-300.0,0.00035777,2]
[423012750,1779745898000,-464.42609091,0.00035777,2]
[423012754,1779745898000,-300.0,0.00035777,2]
[423012752,1779745898000,-452.47069878,0.00035777,2]
[423012756,1779745898000,-484.70549874,0.00035777,2]
[423012753,1779745898000,-300.0,0.00035777,2]
[423012755,1779745898000,-300.0,0.00035777,2]
[423012760,1779745898000,-300.0,0.00035777,2]
[423012770,1779745898000,-300.0,0.00035777,2]
[423012759,1779745898000,-300.0,0.00035777,2]
[423012761,1779745898000,-300.0,0.00035777,2]
[423012771,1779745898000,-300.0,0.00035777,2]
[423012737,1779745898000,-1263.80255523,0.00035777,2]
[423012749,1779745898000,-300.0,0.00035777,2]
[423012738,1779745898000,-344.40589394,0.00035777,2]
[423012710,1779745898000,-310.23513187,0.00035777,2]
[423012736,1779745898000,-300.0,0.00035777,2]
[423012709,1779745898000,-484.70549874,0.00035777,2]
[423012765,1779745898000,-1096.13064931,0.00035777,2]
[423012708,1779745898000,-300.0,0.00035777,2]
[423012707,1779745898000,-300.0,0.00035777,2]
[423012711,1779745898000,-300.0,0.00035777,2]
[423012712,1779745898000,-300.0,0.00035777,2]
[423012722,1779745898000,-300.0,0.00035777,2]
[423012721,1779745898000,-300.0,0.00035777,2]
[423012720,1779745898000,-300.0,0.00035777,2]
[423012717,1779745898000,-1096.13064931,0.00035777,2]
[423012716,1779745898000,-300.0,0.00035777,2]
[423012718,1779745898000,-300.0,0.00035777,2]
[423012715,1779745898000,-300.0,0.00035777,2]
[423012735,1779745898000,-302.18557069,0.00035777,2]
[423012713,1779745898000,-300.0,0.00035777,2]
[423012719,1779745898000,-300.0,0.00035777,2]
[423012723,1779745898000,-300.0,0.00035777,2]
[423012727,1779745898000,-605.22809541,0.00035777,2]
[423012725,1779745898000,-493.31854872,0.00035777,2]
[423012726,1779745898000,-300.0,0.00035777,2]
[423012730,1779745898000,-528.4188744,0.00035777,2]
[423012724,1779745898000,-300.0,0.00035777,2]
[423012732,1779745898000,-894.49518922,0.00035777,2]
[423012733,1779745898000,-726.88474386,0.00035777,2]
[423012729,1779745898000,-300.0,0.00035777,2]
[423012728,1779745898000,-300.0,0.00035777,2]
[423012734,1779745898000,-300.0,0.00035777,2]
[423012731,1779745898000,-1068.26820381,0.00035777,2]
[423012714,1779745898000,-300.0,0.00035777,2]
[423012764,1779745898000,-300.0,0.00035777,2]
[423012774,1779745898000,-536.38759123,0.00035777,2]
[423012767,1779745898000,-300.0,0.00035777,2]
[423012799,1779745898000,-300.0,0.00035777,2]
[423012802,1779745898000,-300.0,0.00035777,2]
[423012798,1779745898000,-464.42609091,0.00035777,2]
[423012801,1779745898000,-300.0,0.00035777,2]
[423012806,1779745898000,-331.41972143,0.00035777,2]
[423012808,1779745898000,-300.0,0.00035777,2]
[423012803,1779745898000,-300.0,0.00035777,2]
[423012805,1779745898000,-310.23513187,0.00035777,2]
[423012813,1779745898000,-300.0,0.00035777,2]
[423012809,1779745898000,-360.60718198,0.00035777,2]
[423012812,1779745898000,-300.0,0.00035777,2]
[423012816,1779745898000,-471.95662992,0.00035777,2]
[423012815,1779745898000,-300.0,0.00035777,2]
[423012814,1779745898000,-300.0,0.00035777,2]
[423012811,1779745898000,-300.0,0.00035777,2]
[423012817,1779745898000,-493.31854872,0.00035777,2]
[423012818,1779745898000,-605.22809541,0.00035777,2]
[423012819,1779745898000,-300.0,0.00035777,2]
[423012810,1779745898000,-1096.13064931,0.00035777,2]
[423012820,1779745898000,-300.0,0.00035777,2]
[423012763,1779745898000,-300.0,0.00035777,2]
[423012821,1779745898000,-1068.26820381,0.00035777,2]
[423012824,1779745898000,-300.0,0.00035777,2]
[423012823,1779745898000,-726.97207915,0.00035777,2]
[423012825,1779745898000,-302.17519562,0.00035777,2]
[423012826,1779745898000,-300.0,0.00035777,2]
[423012827,1779745898000,-300.0,0.00035777,2]
[423012804,1779745898000,-484.70549875,0.00035777,2]
[423012800,1779745898000,-452.47069878,0.00035777,2]
[423012822,1779745898000,-894.52521356,0.00035777,2]
[423012796,1779745898000,-300.0,0.00035777,2]
[423012807,1779745898000,-571.65041272,0.00035777,2]
[423012768,1779745898000,-300.0,0.00035777,2]
[423012766,1779745898000,-300.0,0.00035777,2]
[423012783,1779745898000,-302.17519562,0.00035777,2]
[423012772,1779745898000,-300.0,0.00035777,2]
[423012775,1779745898000,-605.22809541,0.00035777,2]
[423012773,1779745898000,-493.31854872,0.00035777,2]
[423012776,1779745898000,-300.0,0.00035777,2]
[423012784,1779745898000,-300.0,0.00035777,2]
[423012779,1779745898000,-1068.26820381,0.00035777,2]
[423012781,1779745898000,-726.88474388,0.00035777,2]
[423012777,1779745898000,-300.0,0.00035777,2]
[423012780,1779745898000,-894.52521356,0.00035777,2]
[423012769,1779745898000,-300.0,0.00035777,2]
[423012778,1779745898000,-528.31833929,0.00035777,2]
[423012782,1779745898000,-300.0,0.00035777,2]
[423012792,1779745898000,-1148.67046453,0.00035777,2]
[423012797,1779745898000,-300.0,0.00035777,2]
[423012790,1779745898000,-463.12564566,0.00035777,2]
[423012793,1779745898000,-309.97993276,0.00035777,2]
[423012791,1779745898000,-1154.21549782,0.00035777,2]
[423012795,1779745898000,-594.72576008,0.00035777,2]
[423012786,1779745898000,-1358.4420344,0.00035777,2]
[423012788,1779745898000,-344.40589394,0.00035777,2]
[423012789,1779745898000,-300.0,0.00035777,2]
[423012787,1779745898000,-300.0,0.00035777,2]
[423012785,1779745898000,-527.54996007,0.00035777,2]
[423012794,1779745898000,-405.70050666,0.00035777,2]
[423012850,1779745899000,-300.0,0.00035777,2]
[423012851,1779745899000,-493.31854872,0.00035777,2]
[423012853,1779745899000,-300.0,0.00035777,2]
[423012858,1779745899000,-300.0,0.00035777,2]
[423012859,1779745899000,-302.17519563,0.00035777,2]
[423012856,1779745899000,-1193.07558897,0.00035777,2]
[423012857,1779745899000,-727.50024961,0.00035777,2]
[423012866,1779745899000,-594.72576006,0.00035777,2]
[423012860,1779745899000,-320.58634265,0.00035777,2]
[423012865,1779745899000,-310.08810976,0.00035777,2]
[423012868,1779745899000,-464.42609091,0.00035777,2]
[423012864,1779745899000,-300.0,0.00035777,2]
[423012863,1779745899000,-703.59988214,0.00035777,2]
[423012861,1779745899000,-300.0,0.00035777,2]
[423012867,1779745899000,-497.65205075,0.00035777,2]
[423012879,1779745899000,-300.0,0.00035777,2]
[423012869,1779745899000,-300.0,0.00035777,2]
[423012871,1779745899000,-300.0,0.00035777,2]
[423012870,1779745899000,-452.47069878,0.00035777,2]
[423012854,1779745899000,-300.0,0.00035777,2]
[423012862,1779745899000,-344.53197253,0.00035777,2]
[423012849,1779745899000,-300.0,0.00035777,2]
[423012837,1779745899000,-464.42609091,0.00035777,2]
[423012848,1779745899000,-300.0,0.00035777,2]
[423012875,1779745899000,-300.0,0.00035777,2]
[423012831,1779745899000,-300.0,0.00035777,2]
[423012829,1779745899000,-527.54996007,0.00035777,2]
[423012830,1779745899000,-372.33517617,0.00035777,2]
[423012828,1779745899000,-344.40589394,0.00035777,2]
[423012832,1779745899000,-383.15212583,0.00035777,2]
[423012843,1779745899000,-300.0,0.00035777,2]
[423012833,1779745899000,-309.97993276,0.00035777,2]
[423012840,1779745899000,-300.0,0.00035777,2]
[423012852,1779745899000,-605.22809541,0.00035777,2]
[423012835,1779745899000,-300.0,0.00035777,2]
[423012839,1779745899000,-452.47069878,0.00035777,2]
[423012834,1779745899000,-594.72576006,0.00035777,2]
[423012842,1779745899000,-310.23513187,0.00035777,2]
[423012841,1779745899000,-300.0,0.00035777,2]
[423012855,1779745899000,-1068.26820381,0.00035777,2]
[423012844,1779745899000,-441.46893559,0.00035777,2]
[423012845,1779745899000,-1096.13064931,0.00035777,2]
[423012846,1779745899000,-300.0,0.00035777,2]
[423012847,1779745899000,-300.0,0.00035777,2]
[423012838,1779745899000,-300.0,0.00035777,2]
[423012878,1779745899000,-300.0,0.00035777,2]
[423012836,1779745899000,-300.0,0.00035777,2]
[423012873,1779745899000,-378.05270826,0.00035777,2]
[423012903,1779745899000,-1068.26820381,0.00035777,2]
[423012904,1779745899000,-300.0,0.00035777,2]
[423012902,1779745899000,-300.05587494,0.00035777,2]
[423012905,1779745899000,-307.56076732,0.00035777,2]
[423012907,1779745899000,-464.42609091,0.00035777,2]
[423012908,1779745899000,-300.11778233,0.00035777,2]
[423012909,1779745899000,-312.73811511,0.00035777,2]
[423012906,1779745899000,-793.05634036,0.00035777,2]
[423012910,1779745899000,-300.0,0.00035777,2]
[423012899,1779745899000,-300.0,0.00035777,2]
[423012911,1779745899000,-493.31854872,0.00035777,2]
[423012919,1779745899000,-500.0,0.00035786,120]
[423012913,1779745899000,-300.0,0.00035777,2]
[423012915,1779745899000,-151.0,0.0003578,7]
[423012914,1779745899000,-151.0,0.0003578,7]
[423012916,1779745899000,-151.0,0.0003578,7]
[423012917,1779745899000,-460.8907322,0.00035786,120]
[423012920,1779745899000,-408.8601726,0.00035786,120]
[423012921,1779745899000,-440.8939953,0.00035786,120]
[423012877,1779745899000,-300.10098509,0.00035777,2]
[423012912,1779745899000,-1068.61133332,0.00035777,2]
[423012897,1779745899000,-300.0,0.00035777,2]
[423012918,1779745899000,-177.4503788,0.00035786,120]
[423012898,1779745899000,-409.39727451,0.00035777,2]
[423012896,1779745899000,-1096.13064931,0.00035777,2]
[423012876,1779745899000,-1096.13064931,0.00035777,2]
[423012874,1779745899000,-310.33464212,0.00035777,2]
[423012880,1779745899000,-454.22276684,0.00035777,2]
[423012881,1779745899000,-300.0,0.00035777,2]
[423012884,1779745899000,-300.0,0.00035777,2]
[423012885,1779745899000,-1068.26820381,0.00035777,2]
[423012883,1779745899000,-605.22809541,0.00035777,2]
[423012886,1779745899000,-300.0,0.00035777,2]
[423012888,1779745899000,-300.0,0.00035777,2]
[423012872,1779745899000,-300.0,0.00035777,2]
[423012887,1779745899000,-300.0,0.00035777,2]
[423012882,1779745899000,-493.31854872,0.00035777,2]
[423012901,1779745899000,-605.37622071,0.00035777,2]
[423012895,1779745899000,-300.0,0.00035777,2]
[423012893,1779745899000,-603.39166557,0.00035777,2]
[423012890,1779745899000,-594.72576007,0.00035777,2]
[423012894,1779745899000,-300.0,0.00035777,2]
[423012891,1779745899000,-464.42609091,0.00035777,2]
[423012889,1779745899000,-892.05276324,0.00035777,2]
[423012892,1779745899000,-300.0,0.00035777,2]
[423012900,1779745899000,-493.31854872,0.00035777,2]
[423012940,1779745900000,-500.0,0.00035786,120]
[423012945,1779745900000,-500.0,0.00035786,120]
[423012949,1779745900000,-10000.0,0.000358,10]
[423012944,1779745900000,-500.0,0.00035786,120]
[423012942,1779745900000,-500.0,0.00035786,120]
[423012947,1779745900000,-1009.53,0.000358,90]
[423012948,1779745900000,-150.0,0.000358,5]
[423012953,1779745900000,-1129.6269,0.00035837,2]
[423012956,1779745900000,-177.933829,0.00035864,120]
[423012950,1779745900000,-227.5276199,0.000358,30]
[423012951,1779745900000,-3321.72,0.00035803,2]
[423012955,1779745900000,-177.933829,0.00035864,120]
[423012954,1779745900000,-177.933829,0.00035864,120]
[423012958,1779745900000,-177.933829,0.00035864,120]
[423012957,1779745900000,-177.933829,0.00035864,120]
[423012946,1779745900000,-465.64827308,0.00035791,60]
[423012960,1779745900000,-154.0,0.00035874,30]
[423012952,1779745900000,-2138.375,0.00035837,2]
[423012943,1779745900000,-500.0,0.00035786,120]
[423012930,1779745900000,-500.0,0.00035786,120]
[423012939,1779745900000,-500.0,0.00035786,120]
[423012962,1779745900000,-452.0,0.00035874,30]
[423012923,1779745900000,-281.5135555,0.00035786,120]
[423012924,1779745900000,-500.0,0.00035786,120]
[423012922,1779745900000,-500.0,0.00035786,120]
[423012928,1779745900000,-500.0,0.00035786,120]
[423012926,1779745900000,-500.0,0.00035786,120]
[423012925,1779745900000,-500.0,0.00035786,120]
[423012927,1779745900000,-500.0,0.00035786,120]
[423012929,1779745900000,-500.0,0.00035786,120]
[423012931,1779745900000,-500.0,0.00035786,120]
[423012933,1779745900000,-500.0,0.00035786,120]
[423012932,1779745900000,-500.0,0.00035786,120]
[423012935,1779745900000,-500.0,0.00035786,120]
[423012934,1779745900000,-500.0,0.00035786,120]
[423012938,1779745900000,-500.0,0.00035786,120]
[423012937,1779745900000,-500.0,0.00035786,120]
[423012936,1779745900000,-588.5,0.00035786,120]
[423012941,1779745900000,-500.0,0.00035786,120]
[423012961,1779745900000,-156.0,0.00035874,30]
[423012959,1779745900000,-300.0,0.0003587,30]
[423012964,1779745900000,-208.0,0.00035874,30]
[423012987,1779745900000,-233.28958776,0.00036,120]
[423012990,1779745900000,-1000.0,0.00036,30]
[423012988,1779745900000,-1164.43,0.00036,30]
[423012989,1779745900000,-4544.0,0.00036,30]
[423012992,1779745900000,-193.02100821,0.00036,2]
[423012991,1779745900000,-30000.0,0.00036,7]
[423012993,1779745900000,-1260.45,0.00036,60]
[423012999,1779745900000,-150.0,0.00036065,2]
[423012981,1779745900000,-1009.75,0.00036,120]
[423012996,1779745900000,-309.51,0.00036011,30]
[423012997,1779745900000,-2138.375,0.00036016,2]
[423012995,1779745900000,-800.0,0.00036,2]
[423013001,1779745900000,-4635.6325,0.00036093,2]
[423013003,1779745900000,-3548.7,0.00036153,30]
[423013000,1779745900000,-171.20688965,0.00036065,3]
[423013004,1779745900000,-7541.78,0.0003616,30]
[423012963,1779745900000,-1497.0,0.00035874,30]
[423013002,1779745900000,-5531.0,0.000361,5]
[423012994,1779745900000,-45000.0,0.00036,120]
[423012979,1779745900000,-2962.65375086,0.00035949,23]
[423012998,1779745900000,-1284.45,0.00036034,10]
[423012980,1779745900000,-4635.6325,0.00035965,2]
[423012966,1779745900000,-1789.0,0.00035876,30]
[423012982,1779745900000,-10100.0,0.00036,20]
[423012965,1779745900000,-357.0,0.00035874,30]
[423012968,1779745900000,-164.0,0.00035876,30]
[423012967,1779745900000,-156.0,0.00035876,30]
[423012970,1779745900000,-544.0,0.00035876,30]
[423012973,1779745900000,-1356953.63434642,0.00035895,2]
[423012972,1779745900000,-350.0,0.0003589,5]
[423012971,1779745900000,-157.0,0.00035876,30]
[423012969,1779745900000,-2067.0,0.00035876,30]
[423012984,1779745900000,-25102.76666688,0.00036,2]
[423012974,1779745900000,-109101.18257664,0.00035895,2]
[423012976,1779745900000,-5616.84349692,0.000359,14]
[423012978,1779745900000,-152.0,0.00035919,16]
[423012977,1779745900000,-157.86412917,0.00035911,2]
[423012985,1779745900000,-4105.94897245,0.00036,120]
[423012983,1779745900000,-311.3125,0.00036,30]
[423012975,1779745900000,-2658.8,0.000359,120]
[423012986,1779745900000,-1500.0,0.00036,15]
[423013044,1779745901000,-4561.34955398,0.00036684,92]
[423013043,1779745901000,-300.0,0.0003666,30]
[423013045,1779745901000,-25000.0,0.00036691,10]
[423013037,1779745901000,-719.04747942,0.00036538,2]
[423013035,1779745901000,-1000.0,0.000365,30]
[423013036,1779745901000,-747.80937859,0.00036538,2]
[423013041,1779745901000,-458.03845279,0.00036637,92]
[423013039,1779745901000,-4635.6325,0.00036605,2]
[423013042,1779745901000,-1053.94,0.00036649,30]
[423013038,1779745901000,-2138.375,0.00036554,2]
[423013046,1779745901000,-2000.0,0.000367,7]
[423013057,1779745901000,-1000.0,0.000368,30]
[423013053,1779745901000,-1129.6269,0.00036733,2]
[423013049,1779745901000,-1300.74058688,0.00036706,7]
[423013055,1779745901000,-2524.84,0.00036798,10]
[423013051,1779745901000,-4635.6325,0.00036733,2]
[423013047,1779745901000,-1345.55248201,0.00036705,7]
[423013056,1779745901000,-1640.3773937,0.000368,2]
[423013048,1779745901000,-1606.68863371,0.00036706,7]
[423013052,1779745901000,-2138.375,0.00036733,2]
[423013054,1779745901000,-231.15,0.0003676,120]
[423013058,1779745901000,-185.883077,0.00036825,34]
[423013059,1779745901000,-421.710256,0.00036825,34]
[423013030,1779745901000,-1352.1690154,0.00036383,7]
[423013050,1779745901000,-157.86412917,0.00036733,2]
[423013031,1779745901000,-2606.6781194,0.00036383,7]
[423013013,1779745901000,-1434.57,0.00036209,10]
[423013032,1779745901000,-363712.0,0.000364,30]
[423013069,1779745901000,-500.0,0.00036974,30]
[423013011,1779745901000,-1756.129,0.000362,120]
[423013005,1779745901000,-157.86412917,0.00036185,2]
[423013006,1779745901000,-2138.375,0.00036195,2]
[423013010,1779745901000,-2045.06,0.000362,120]
[423013007,1779745901000,-1000.0,0.000362,30]
[423013009,1779745901000,-2045.059,0.000362,120]
[423013008,1779745901000,-2045.059,0.000362,120]
[423013017,1779745901000,-23162.62,0.0003628,10]
[423013016,1779745901000,-206.34,0.00036269,2]
[423013021,1779745901000,-4635.6325,0.00036349,2]
[423013014,1779745901000,-231.15,0.0003621,110]
[423013028,1779745901000,-2628.94090096,0.00036383,7]
[423013015,1779745901000,-4635.6325,0.00036221,2]
[423013019,1779745901000,-25000.0,0.00036314,10]
[423013022,1779745901000,-1350.1408837,0.00036374,2]
[423013012,1779745901000,-1756.12,0.000362,30]
[423013018,1779745901000,-897.71,0.000363,30]
[423013020,1779745901000,-2524.84,0.00036316,10]
[423013025,1779745901000,-1221.32501046,0.00036383,7]
[423013024,1779745901000,-3822.21739961,0.00036382,7]
[423013026,1779745901000,-2364.5525555,0.00036383,7]
[423013034,1779745901000,-4635.6325,0.00036477,2]
[423013027,1779745901000,-1949.78391339,0.00036383,7]
[423013033,1779745901000,-157.86412917,0.00036459,2]
[423013029,1779745901000,-1211.03159985,0.00036383,7]
[423013023,1779745901000,-2138.375,0.00036374,2]
[423013060,1779745901000,-206.34,0.00036843,7]
[423013040,1779745901000,-5000.0,0.00036634,10]
[423013068,1779745901000,-1104796.4499,0.00036916,30]
[423013095,1779745901000,-234416.45508792,0.000371,2]
[423013098,1779745901000,-500.0,0.00037118,30]
[423013105,1779745901000,-185.80235957,0.00037125,120]
[423013094,1779745901000,-2138.375,0.00037091,2]
[423013096,1779745901000,-4635.6325,0.00037117,2]
[423013097,1779745901000,-500.0,0.00037118,30]
[423013104,1779745901000,-150.0,0.00037125,120]
[423013099,1779745901000,-500.0,0.00037118,30]
[423013103,1779745901000,-267.71,0.00037118,30]
[423013102,1779745901000,-500.0,0.00037118,30]
[423013100,1779745901000,-500.0,0.00037118,30]
[423013101,1779745901000,-500.0,0.00037118,30]
[423013091,1779745901000,-10813.92,0.00037,14]
[423013107,1779745901000,-257.113024,0.000372,36]
[423013106,1779745901000,-200.0,0.00037127,2]
[423013108,1779745901000,-157.47491627,0.000372,120]
[423013110,1779745901000,-157.47491624,0.000372,120]
[423013113,1779745901000,-235.89942585,0.000372,120]
[423013114,1779745901000,-165.12959809,0.000372,120]
[423013111,1779745901000,-157.47491624,0.000372,120]
[423013112,1779745901000,-157.47491624,0.000372,120]
[423013115,1779745901000,-191.03159967,0.00037228,2]
[423013116,1779745901000,-4635.6325,0.00037245,2]
[423013117,1779745901000,-2138.375,0.0003727,2]
[423013118,1779745901000,-157.86412917,0.00037281,2]
[423013119,1779745901000,-1504.64,0.000373,120]
[423013109,1779745901000,-157.47491624,0.000372,120]
[423013089,1779745901000,-780.09146522,0.00037,2]
[423013061,1779745901000,-2520.19,0.00036847,10]
[423013088,1779745901000,-8081.39,0.00037,15]
[423013090,1779745901000,-1260.45,0.00037,75]
[423013065,1779745901000,-191.743076,0.00036875,34]
[423013067,1779745901000,-2138.375,0.00036912,2]
[423013062,1779745901000,-152.0,0.00036848,17]
[423013066,1779745901000,-2000.0,0.000369,120]
[423013064,1779745901000,-4635.6325,0.00036861,2]
[423013063,1779745901000,-350.0,0.00036849,5]
[423013071,1779745901000,-300.0,0.00036986,2]
[423013081,1779745901000,-642.97090949,0.00037,120]
[423013073,1779745901000,-4500.0,0.00037,2]
[423013070,1779745901000,-500.0,0.00036974,30]
[423013074,1779745901000,-365.0,0.00037,2]
[423013072,1779745901000,-4635.6325,0.00036989,2]
[423013080,1779745901000,-1000.0,0.00037,30]
[423013075,1779745901000,-168.75464375,0.00037,2]
[423013076,1779745901000,-7054.0,0.00037,25]
[423013092,1779745901000,-157.86412917,0.00037007,2]
[423013093,1779745901000,-337.81,0.00037071,30]
[423013083,1779745901000,-30000.0,0.00037,7]
[423013085,1779745901000,-1164.43,0.00037,30]
[423013086,1779745901000,-500.0,0.00037,14]
[423013084,1779745901000,-418.25759086,0.00037,120]
[423013087,1779745901000,-262.07839753,0.00037,2]
[423013079,1779745901000,-700.0,0.00037,14]
[423013077,1779745901000,-746672.315085,0.00037,20]
[423013078,1779745901000,-26823.93,0.00037,30]
[423013082,1779745901000,-500.0,0.00037,120]
[423013163,1779745902000,-500.0,0.00037776,120]
[423013159,1779745902000,-177.4503788,0.00037776,120]
[423013161,1779745902000,-408.8601725,0.00037776,120]
[423013157,1779745902000,-209.78,0.00037756,120]
[423013151,1779745902000,-332.066666,0.00037629,38]
[423013153,1779745902000,-2138.3754,0.00037629,2]
[423013164,1779745902000,-281.5135554,0.00037776,120]
[423013156,1779745902000,-1479.48,0.00037756,120]
[423013154,1779745902000,-1129.6269,0.00037629,2]
[423013158,1779745902000,-460.8907321,0.00037776,120]
[423013155,1779745902000,-732.9,0.000377,15]
[423013160,1779745902000,-500.0,0.00037776,120]
[423013176,1779745902000,-500.0,0.00037776,120]
[423013165,1779745902000,-500.0,0.00037776,120]
[423013168,1779745902000,-500.0,0.00037776,120]
[423013169,1779745902000,-500.0,0.00037776,120]
[423013167,1779745902000,-500.0,0.00037776,120]
[423013166,1779745902000,-500.0,0.00037776,120]
[423013172,1779745902000,-500.0,0.00037776,120]
[423013171,1779745902000,-500.0,0.00037776,120]
[423013174,1779745902000,-500.0,0.00037776,120]
[423013175,1779745902000,-500.0,0.00037776,120]
[423013170,1779745902000,-500.0,0.00037776,120]
[423013173,1779745902000,-500.0,0.00037776,120]
[423013177,1779745902000,-500.0,0.00037776,120]
[423013152,1779745902000,-4635.6339,0.00037629,2]
[423013162,1779745902000,-440.8939952,0.00037776,120]
[423013149,1779745902000,-4657.77534127,0.000376,30]
[423013132,1779745902000,-1000.0,0.000375,30]
[423013142,1779745902000,-157.86412917,0.00037555,2]
[423013120,1779745902000,-1504.64,0.000373,60]
[423013178,1779745902000,-500.0,0.00037776,120]
[423013122,1779745902000,-1504.64,0.000373,120]
[423013123,1779745902000,-231.16,0.000373,60]
[423013126,1779745902000,-3507.0,0.0003737,120]
[423013127,1779745902000,-4635.6325,0.00037373,2]
[423013121,1779745902000,-1504.64,0.000373,120]
[423013124,1779745902000,-631.33,0.000373,30]
[423013125,1779745902000,-631.33,0.000373,30]
[423013130,1779745902000,-300.0,0.0003746,30]
[423013140,1779745902000,-4800.0,0.000375,60]
[423013138,1779745902000,-40000.0,0.000375,30]
[423013139,1779745902000,-1000.0,0.000375,120]
[423013129,1779745902000,-2138.375,0.00037449,2]
[423013131,1779745902000,-169.13,0.0003746,5]
[423013134,1779745902000,-1000.0,0.000375,120]
[423013133,1779745902000,-600.0,0.000375,120]
[423013135,1779745902000,-1000.0,0.000375,120]
[423013136,1779745902000,-1000.0,0.000375,120]
[423013137,1779745902000,-1001.98451309,0.000375,120]
[423013141,1779745902000,-4635.6325,0.00037501,2]
[423013144,1779745902000,-363712.0,0.000376,30]
[423013143,1779745902000,-4414.43391544,0.0003759,2]
[423013148,1779745902000,-582.80837992,0.000376,30]
[423013147,1779745902000,-4657.77534127,0.000376,30]
[423013150,1779745902000,-4657.77534127,0.000376,30]
[423013145,1779745902000,-582.80837994,0.000376,30]
[423013146,1779745902000,-582.80837992,0.000376,30]
[423013128,1779745902000,-206.34,0.00037416,30]
[423013179,1779745902000,-500.0,0.00037776,120]
[423013182,1779745902000,-500.0,0.00037776,120]
[423013213,1779745902000,-1000.0,0.000378,7]
[423013214,1779745902000,-1000.0,0.000378,7]
[423013219,1779745902000,-1000.0,0.000378,7]
[423013215,1779745902000,-1000.0,0.000378,7]
[423013217,1779745902000,-1000.0,0.000378,7]
[423013216,1779745902000,-1000.0,0.000378,7]
[423013220,1779745902000,-1000.0,0.000378,7]
[423013224,1779745902000,-1000.0,0.000378,7]
[423013218,1779745902000,-1000.0,0.000378,7]
[423013221,1779745902000,-1000.0,0.000378,7]
[423013222,1779745902000,-1000.0,0.000378,7]
[423013223,1779745902000,-1000.0,0.000378,7]
[423013212,1779745902000,-1000.0,0.000378,7]
[423013225,1779745902000,-1000.0,0.000378,7]
[423013227,1779745902000,-1000.0,0.000378,7]
[423013226,1779745902000,-1000.0,0.000378,7]
[423013229,1779745902000,-1000.0,0.000378,7]
[423013230,1779745902000,-1000.0,0.000378,7]
[423013233,1779745902000,-1000.0,0.000378,7]
[423013236,1779745902000,-1000.0,0.000378,7]
[423013231,1779745902000,-1000.0,0.000378,7]
[423013235,1779745902000,-1000.0,0.000378,7]
[423013234,1779745902000,-1000.0,0.000378,7]
[423013232,1779745902000,-1000.0,0.000378,7]
[423013238,1779745902000,-1000.0,0.000378,7]
[423013185,1779745902000,-500.0,0.00037776,120]
[423013228,1779745902000,-1000.0,0.000378,7]
[423013208,1779745902000,-1000.0,0.000378,7]
[423013237,1779745902000,-1000.0,0.000378,7]
[423013205,1779745902000,-1000.0,0.000378,7]
[423013207,1779745902000,-1000.0,0.000378,7]
[423013181,1779745902000,-500.0,0.00037776,120]
[423013184,1779745902000,-500.0,0.00037776,120]
[423013183,1779745902000,-500.0,0.00037776,120]
[423013197,1779745902000,-301.31,0.00037782,2]
[423013187,1779745902000,-152.0,0.00037777,18]
[423013189,1779745902000,-105000.0,0.00037779,7]
[423013186,1779745902000,-588.5,0.00037776,120]